bitfinex-derivatives/quotes_SOLF0:USTF0_20260211
["timestamp","ask_amount","ask_price","bid_price","bid_amount"]
[1770802598602,3.11341431,81.15,81.112,4.71241896]
[1770802600299,3.11341431,81.14,81.098,4.71241896]
[1770802604919,3.11290286,81.14,81.098,4.71241896]
[1770802605418,11.0968,81.149,81.1,4.69171899]
[1770802605812,3.11290286,81.14,81.1,4.69171899]
[1770802609504,3.11290286,81.14,81.102,4.63848886]
[1770802616516,11.0983,81.138,81.088,11.1051]
[1770802616716,3.11290286,81.11,81.081,4.63945385]
[1770802617124,3.11290286,81.12,81.081,4.63945385]
[1770802618721,3.11290286,81.11,81.081,4.63945385]
[1770802619114,3.11290286,81.12,81.081,4.63945385]
[1770802619718,3.11290286,81.13,81.083,4.66711997]
[1770802619919,11.0986,81.136,81.083,4.66711997]
[1770802620120,3.11290286,81.14,81.083,4.66711997]
[1770802620319,3.11290286,81.15,81.101,4.66711997]
[1770802620521,3.11290286,81.13,81.082,4.63601888]
[1770802621326,3.11290286,81.12,81.082,4.63601888]
[1770802622229,22.188,81.17,81.082,4.63601888]
[1770802622230,3.11290286,81.11,81.082,4.63601888]
[1770802622426,11.1023,81.109,81.065,4.63601888]
[1770802623524,11.1009,81.119,81.072,4.65907308]
[1770802624526,3.11290286,81.11,81.074,4.65907308]
[1770802624722,11.1009,81.119,81.074,4.65907308]
[1770802625228,11.1009,81.119,81.076,4.64092884]
[1770802625625,3.11290286,81.12,81.076,4.64092884]
[1770802627727,3.11290286,81.12,81.078,4.49150947]
[1770802629126,3.11290286,81.11,81.078,4.49150947]
[1770802629725,3.11290286,81.11,81.079,11.1063]
[1770802630437,3.11290286,81.09,81.067,4.49410188]
[1770802630633,3.11290286,81.1,81.067,4.49410188]
[1770802631732,3.11290286,81.1,81.067,15.60210188]
[1770802632640,3.11290286,81.1,81.067,4.49410188]
[1770802634539,3.11290286,81.1,81.068,4.48840936]
[1770802634839,3.11290286,81.11,81.068,4.48840936]
[1770802635239,3.11290286,81.1,81.068,4.48840936]
[1770802635835,3.11290286,81.1,81.071,11.1073]
[1770802636137,3.11290286,81.1,81.071,15.59570936]
[1770802637236,3.11290286,81.1,81.071,4.48840936]
[1770802637436,2.63387732,81.08,81.048,4.48336976]
[1770802638443,3.11290286,81.07,81.046,477.03902599]
[1770802638735,3.11290286,81.07,81.041,11.1115]
[1770802640647,3.11290286,81.07,81.036,4.48336976]
[1770802641738,3.11290286,81.05,81.011,4.51594603]
[1770802643547,3.11290286,81.05,81.014,4.52057349]
[1770802643750,3.11290286,81.06,81.014,4.52057349]
[1770802644846,14.22190286,81.06,81.014,4.52057349]
[1770802645744,3.11290286,81.06,81.014,4.52057349]
[1770802645940,3.11290286,81.07,81.02,3.11290286]
[1770802646145,3.11290286,81.07,81.021,4.4494518]
[1770802646851,3.11290286,81.07,81.025,4.41147998]
[1770802648547,3.11290286,81.06,81.025,4.41147998]
[1770802651254,11.1063,81.08,81.025,4.41147998]
[1770802651555,3.11290286,81.06,81.025,4.41147998]
[1770802666565,3.11290286,81.07,81.025,4.41147998]
[1770802666764,3.11290286,81.06,81.025,4.41147998]
[1770802666960,3.11932766,81.06,81.025,4.41147998]
[1770802667361,3.11932766,81.07,81.025,4.41147998]
[1770802667563,3.11932766,81.08,81.031,4.41098596]
[1770802667966,3.11932766,81.08,81.032,4.41098596]
[1770802669068,3.11932766,81.08,81.036,4.39496866]
[1770802671971,3.11932766,81.07,81.036,4.39496866]
[1770802672171,3.11932766,81.08,81.036,4.39496866]
[1770802672469,3.11932766,81.07,81.036,4.39496866]
[1770802672867,3.11932766,81.07,81.026,11.1135]
[1770802673064,3.11932766,81.07,81.027,4.35832468]
[1770802674566,3.11870721,81.07,81.027,4.35832468]
[1770802677073,11.1066,81.078,81.027,4.35832468]
[1770802677471,11.1066,81.078,81.03,3.11870721]
[1770802677669,11.1066,81.078,81.031,4.35303858]
[1770802678674,11.1066,81.078,81.033,4.35311823]
[1770802679573,3.11870721,81.08,81.033,4.35311823]
[1770802680779,3.11870721,81.05,81.022,4.35076132]
[1770802681179,3.11870721,81.06,81.022,4.35076132]
[1770802683980,3.11870721,81.06,81.024,11.1138]
[1770802684283,3.11870721,81.06,81.025,4.39003808]
[1770802687881,3.11870721,81.07,81.025,4.39003808]
[1770802688082,3.11870721,81.08,81.027,4.41005343]
[1770802688281,3.11870721,81.07,81.027,4.41005343]
[1770802688883,3.11870721,81.06,81.027,4.41005343]
[1770802689083,3.11870721,81.07,81.027,4.41005343]
[1770802689885,3.11870721,81.06,81.027,4.41005343]
[1770802691378,14.22640721,81.07,81.027,4.41005343]
[1770802693083,3.11870721,81.08,81.029,4.47948902]
[1770802693392,3.11870721,81.09,81.031,4.47948902]
[1770802693694,3.11870721,81.1,81.041,4.47948902]
[1770802694685,11.1042,81.095,81.046,11.1108]
[1770802694893,11.1042,81.095,81.047,4.44054098]
[1770802695391,3.11870721,81.1,81.047,4.44054098]
[1770802696088,3.11870721,81.1,81.009,30.70305073]
[1770802696089,3.11870721,81.1,81.058,4.44054098]
[1770802696987,3.11870721,81.1,81.06,4.42120342]
[1770802697192,3.11870721,81.09,81.048,4.42120342]
[1770802697793,3.11870721,81.1,81.048,4.42120342]
[1770802698586,3.11870721,81.1,81.05,4.44894959]
[1770802699596,3.11870721,81.09,81.05,4.44894959]
[1770802702095,14.22220721,81.1,81.05,4.44894959]
[1770802703794,3.11870721,81.09,81.05,4.44894959]
[1770802705196,3.11870721,81.09,81.052,4.45222832]
[1770802706296,3.11870721,81.08,81.051,11.1101]
[1770802707396,3.11870721,81.08,81.051,15.56139277]
[1770802708796,3.11870721,81.09,81.051,15.56139277]
[1770802710499,15.22328866,81.136,80.988,209.9699]
[1770802710500,3.11870721,81.07,81.043,11.1112]
[1770802711096,3.11870721,81.08,81.043,11.1112]
[1770802711901,3.11870721,81.08,80.994,30.70305073]
[1770802711902,3.11870721,81.08,81.05,4.49924481]
[1770802717302,3.11870721,81.07,81.037,4.51149408]
[1770802717506,3.11870721,81.08,81.037,4.51149408]
[1770802718611,3.11870721,81.08,81.039,4.5199958]
[1770802720914,11.1051,81.089,81.039,4.5199958]
[1770802723518,3.11870721,81.08,81.039,4.5199958]
[1770802726518,11.1051,81.089,81.043,4.5491615]
[1770802729516,3.11731475,81.08,81.043,4.5491615]
[1770802730221,11.1051,81.089,81.043,4.5491615]
[1770802733919,3.11731475,81.08,81.043,4.5491615]
[1770802737027,11.1051,81.089,81.043,4.5491615]
[1770802738629,3.11731475,81.08,81.043,4.5491615]
[1770802741427,3.11731475,81.06,81.025,4.55552789]
[1770802742925,3.11731475,81.07,81.025,4.55552789]
[1770802743737,3.11731475,81.07,81.028,4.58479317]
[1770802745634,3.11731475,81.07,81.031,4.55865661]
[1770802746833,3.11731475,81.07,81.033,4.51829928]
[1770802748641,3.11731475,81.07,81.035,11.1123]
[1770802748842,3.11731475,81.07,81.036,4.5200792]
[1770802768246,3.11731475,81.06,81.028,11.1133]
[1770802768446,15.22328866,81.11,81.017,4.50702703]
[1770802768447,3.11731475,81.05,81.017,4.50702703]
[1770802773955,3.11731475,81.05,80.974,30.70305073]
[1770802773956,3.11731475,81.04,81.004,4.58081429]
[1770802778142,9.12841195,81.079,80.98,3.11731475]
[1770802778143,3.11731475,81.03,80.994,4.57703409]
[1770802778348,3.11731475,81.02,80.985,4.57703409]
[1770802778949,3.11731475,81.03,80.985,4.57703409]
[1770802784061,9.12841195,81.081,80.99,3.11731475]
[1770802784259,3.11731475,81.05,81.001,4.57979934]
[1770802784564,3.11731475,81.04,81.001,4.57979934]
[1770802784946,11.1114,81.043,81.001,4.57979934]
[1770802784947,3.11731475,81.03,81.001,4.57979934]
[1770802785858,3.11731475,81.03,80.986,4.57440707]
[1770802786455,172.7414,81.091,80.986,4.57440707]
[1770802786456,3.11731475,81.02,80.986,4.57440707]
[1770802787663,11.1132,81.029,80.986,4.57440707]
[1770802788757,11.1132,81.029,80.999,0.07779986]
[1770802788958,3.12196055,81.03,80.999,4.64682319]
[1770802790555,11.1106,81.049,81.001,4.56400738]
[1770802790962,22.2083,81.096,80.999,0.07779986]
[1770802790963,3.12196055,81.03,80.999,0.07779986]
[1770802791153,3.12196055,81.04,80.991,4.56400738]
[1770802791865,3.12196055,81.04,80.994,4.56400738]
[1770802792166,3.12196055,81.03,80.994,4.56400738]
[1770802792657,3.12196055,81.04,80.994,4.56400738]
[1770802793565,3.12196055,81.03,80.994,4.56400738]
[1770802795865,3.12127497,81.03,80.994,4.56400738]
[1770802796558,3.12127497,81.04,80.994,4.56400738]
[1770802798759,3.12127497,81.04,80.996,4.58143965]
[1770802800866,3.12127497,81.03,80.996,4.58143965]
[1770802802371,11.1124,81.035,80.996,4.58143965]
[1770802805767,11.1134,81.028,80.996,4.58143965]
[1770802812572,11.1122,81.037,80.996,4.58143965]
[1770802814071,11.1106,81.049,80.996,4.58143965]
[1770802815772,11.1106,81.049,81.0,4.63739863]
[1770802820571,3.12127497,81.04,81.0,4.63739863]
[1770802823976,11.1111,81.045,81.0,4.63739863]
[1770802824177,3.12127497,81.04,81.0,4.63739863]
[1770802828283,11.1111,81.045,81.0,4.63739863]
[1770802829886,11.1111,81.045,81.002,4.61193923]
[1770802830086,3.12127497,81.04,81.002,4.61193923]
[1770802834997,11.1111,81.045,81.002,4.61193923]
[1770802839611,3.12127497,81.05,81.002,4.61193923]
[1770802844005,3.12127497,81.04,80.992,11.1182]
[1770802844210,3.12127497,81.03,80.991,4.76218653]
[1770802846100,3.12127497,81.05,81.001,4.77777438]
[1770802847606,2.14771065,81.091,80.978,23.02728804]
[1770802847607,9.09692171,81.074,81.021,4.76384135]
[1770802847801,3.12127497,81.07,81.021,4.76384135]
[1770802848298,9.09399722,81.095,81.041,4.76384135]
[1770802848503,3.12127497,81.11,81.051,4.76384135]
[1770802848714,3.12127497,81.1,81.051,4.76384135]
[1770802848909,3.11617537,81.1,81.051,4.76384135]
[1770802849106,3.11617537,81.08,81.037,4.72725784]
[1770802851113,3.11617537,81.07,81.037,4.72725784]
[1770802851706,3.11617537,81.06,81.026,4.75053155]
[1770802851908,3.11617537,81.06,81.015,11.1151]
[1770802851909,3.11617537,81.06,81.016,4.75053155]
[1770802853811,3.11617537,81.06,81.018,4.8158134]
[1770802854602,3.11617537,81.06,81.02,4.78386252]
[1770802855615,3.11617537,81.06,81.022,4.78386252]
[1770802856408,3.11617537,81.06,81.026,4.78386252]
[1770802856810,3.11617537,81.07,81.026,4.78386252]
[1770802857110,3.11617537,81.08,81.031,4.78246051]
[1770802857515,3.11617537,81.08,81.033,4.78246051]
[1770802858803,3.11617537,81.08,81.039,4.76431148]
[1770802860314,3.11617537,81.08,81.041,4.76431148]
[1770802861015,3.11617537,81.08,81.042,11.1114]
[1770802861217,3.11617537,81.08,81.042,15.89862832]
[1770802863611,3.11617537,81.08,81.042,4.78722832]
[1770802868014,3.11617537,81.07,81.042,4.78722832]
[1770802869117,11.1065,81.079,81.042,4.78722832]
[1770802869315,3.11617537,81.07,81.042,4.78722832]
[1770802869618,3.11617537,81.08,81.042,4.78722832]
[1770802869822,3.11617537,81.07,81.042,4.78722832]
[1770802873728,11.1073,81.073,81.042,4.78722832]
[1770802875128,22.2037,81.113,81.026,4.79519004]
[1770802875129,11.1087,81.063,81.026,4.79519004]
[1770802878025,11.1103,81.051,81.026,4.79519004]
[1770802878231,11.1103,81.051,81.007,4.78940621]
[1770802878530,11.1103,81.051,81.011,4.78940621]
[1770802879029,11.1092,81.059,81.013,4.79140858]
[1770802879831,11.1092,81.059,81.015,4.79140858]
[1770802882737,3.11617537,81.06,81.015,4.79140858]
[1770802884031,3.11617537,81.05,81.0,4.84331176]
[1770802884232,3.11617537,81.04,81.0,4.84331176]
[1770802885836,3.11617537,81.04,81.002,4.84757745]
[1770802889738,3.11617537,81.04,81.005,11.1164]
[1770802890032,3.11617537,81.04,81.006,4.86693608]
[1770802890237,3.11617537,81.05,81.016,4.86693608]
[1770802892843,9.07173695,81.091,81.021,4.83334989]
[1770802893038,11.52194843,81.11,81.021,4.83334989]
[1770802893246,3.11617537,81.09,81.031,4.83334989]
[1770802893544,3.11617537,81.08,81.031,4.83334989]
[1770802894444,3.11617537,81.07,81.031,4.83334989]
[1770802894836,3.11617537,81.07,81.02,3.11617537]
[1770802895043,3.11617537,81.03,80.993,4.80291057]
[1770802896445,3.11617537,81.03,80.994,11.1179]
[1770802897246,3.11617537,81.02,80.983,11.1194]
[1770802897436,3.11617537,81.02,80.982,4.93326716]
[1770802898442,3.11617537,81.03,80.982,4.93326716]
[1770802899437,11.1112,81.044,80.982,4.93326716]
[1770802899742,3.11617537,81.03,80.982,4.93326716]
[1770802903049,3.11617537,81.04,80.991,4.91254965]
[1770802904649,11.112,81.039,80.991,4.91254965]
[1770802909958,11.1108,81.047,81.001,4.792321]
[1770802912758,11.1094,81.057,81.011,4.76629375]
[1770802913554,11.1081,81.066,81.031,4.76629375]
[1770802913761,3.12052441,81.08,81.031,4.76629375]
[1770802914059,333.70415313,81.1,81.041,4.76629375]
[1770802914260,11.105,81.089,81.041,4.76629375]
[1770802914459,330.58362872,81.1,81.041,4.76629375]
[1770802914659,333.70056779,81.1,81.051,4.76629375]
[1770802915852,11.1039,81.097,81.051,4.76629375]
[1770802918561,3.11693907,81.09,81.051,4.76629375]
[1770802919959,3.11693907,81.09,81.034,4.80176608]
[1770802920168,3.11693907,81.08,81.034,4.80176608]
[1770802920669,3.11693907,81.07,81.034,4.80176608]
[1770802921667,3.11693907,81.08,81.034,4.80176608]
[1770802923066,3.11693907,81.09,81.034,4.80176608]
[1770802923361,3.11693907,81.08,81.034,4.80176608]
[1770802923561,3.11693907,81.07,81.034,4.80176608]
[1770802923963,3.11693907,81.08,81.034,4.80176608]
[1770802924766,3.11693907,81.08,81.04,4.82756755]
[1770802925070,3.11693907,81.07,81.04,4.82756755]
[1770802925568,3.11693907,81.07,81.041,11.1115]
[1770802927167,3.11693907,81.07,80.987,37.03]
[1770802927168,3.11693907,81.06,81.032,11.1127]
[1770802928975,3.11693907,81.07,81.032,11.1127]
[1770802929770,3.11693907,81.07,81.035,4.84608953]
[1770802929972,3.11693907,81.08,81.035,4.84608953]
[1770802930778,3.11693907,81.08,81.037,4.83754252]
[1770802930970,3.11693907,81.07,81.037,4.83754252]
[1770802931165,3.11693907,81.08,81.037,4.83754252]
[1770802934376,3.11693907,81.07,81.037,4.83754252]
[1770802940188,3.11693907,81.06,81.024,4.79714237]
[1770802942190,11.1092,81.059,81.024,4.79714237]
[1770802944191,11.1101,81.052,81.024,4.79714237]
[1770802945690,3.11693907,81.06,81.024,4.79714237]
[1770802945890,3.11693907,81.07,81.024,4.79714237]
[1770802947296,3.11693907,81.06,81.024,4.79714237]
[1770802950499,3.11693907,81.06,81.026,4.804617]
[1770802951500,3.11693907,81.07,81.034,4.8059305]
[1770802952397,3.11693907,81.07,81.035,15.9182305]
[1770802954103,3.11693907,81.06,81.035,15.9182305]
[1770802954798,3.11693907,81.05,81.025,11.1137]
[1770802954998,3.11693907,81.05,81.019,4.81475353]
[1770802955199,9.09108086,81.081,80.99,4.81475353]
[1770802955200,3.11693907,81.04,80.99,4.81475353]
[1770802955400,3.11693907,81.03,80.995,4.81475353]
[1770802955594,23.04364478,81.097,80.97,3.11693907]
[1770802955595,3.11693907,81.02,80.984,4.81475353]
[1770802956704,3.11693907,81.02,80.985,4.83253728]
[1770802958804,3.11693907,81.03,80.985,4.83253728]
[1770802959692,3.11693907,81.02,80.985,4.83253728]
[1770802960803,3.11693907,81.02,80.994,0.07784621]
[1770802961597,22.2168,81.065,80.994,0.07784621]
[1770802961598,9.09108086,81.063,80.994,4.90148786]
[1770802961805,3.11693907,81.04,80.994,4.90148786]
[1770802962001,3.11693907,81.03,80.994,4.90148786]
[1770802962200,3.11693907,81.03,80.994,4.82364165]
[1770802962601,3.11693907,81.02,80.994,4.82364165]
[1770802963000,3.11693907,81.02,80.983,4.81445104]
[1770802964102,3.11693907,81.03,80.983,4.81445104]
[1770802965798,11.1141,81.023,80.983,4.81445104]
[1770802966907,3.11693907,81.02,80.983,4.81445104]
[1770802969608,11.1141,81.023,80.983,4.81445104]
[1770802970912,3.11693907,81.03,80.983,4.81445104]
[1770802971315,172.7677,81.079,80.983,4.81445104]
[1770802971316,3.11693907,81.02,80.983,4.81445104]
[1770802972114,3.11693907,81.03,80.983,4.81445104]
[1770802972919,3.12207117,81.03,80.983,4.81445104]
[1770802973915,11.1141,81.023,80.983,4.81445104]
[1770802978615,11.1152,81.015,80.983,4.81445104]
[1770802979420,11.1141,81.023,80.983,4.81445104]
[1770802981024,11.1141,81.023,80.949,23.02728804]
[1770802981025,3.12207117,81.01,80.971,4.81956727]
[1770802981226,3.12207117,81.02,80.971,4.81956727]
[1770802982130,11.1144,81.021,80.971,4.81956727]
[1770802982317,11.1144,81.021,80.981,4.81956727]
[1770802983022,11.1136,81.027,80.981,4.81956727]
[1770802984223,3.12207117,81.05,81.001,4.81000071]
[1770802985831,11.1121,81.037,81.001,4.81000071]
[1770802999533,9.07550926,81.068,81.02,3.12093861]
[1770802999743,3.12093861,81.07,81.021,4.76131086]
[1770803000529,11.1091,81.059,81.021,4.76131086]
[1770803004349,11.1081,81.067,81.021,4.76131086]
[1770803005949,3.12093861,81.06,81.021,4.76131086]
[1770803006949,3.12093861,81.06,81.014,11.1153]
[1770803007349,3.12093861,81.06,81.014,15.90435222]
[1770803007549,3.12093861,81.06,81.015,4.78905222]
[1770803008455,3.12093861,81.05,81.015,4.78905222]
[1770803008954,11.1097,81.055,81.015,4.78905222]
[1770803010642,3.12093861,81.05,81.015,4.78905222]
[1770803010843,3.12093861,81.04,81.004,4.78397589]
[1770803011045,330.58362872,81.1,81.004,4.78397589]
[1770803011046,3.12093861,81.03,81.004,4.78397589]
[1770803011246,3.12093861,81.03,80.989,4.78397589]
[1770803011658,11.51432309,81.075,80.974,4.78397589]
[1770803011659,3.12093861,81.01,80.974,4.78397589]
[1770803013257,11.1141,81.023,80.974,4.78397589]
[1770803013562,11.1141,81.023,80.949,473.94499449]
[1770803013563,3.12093861,81.03,80.981,4.77534566]
[1770803013957,11.1132,81.029,80.983,4.77534566]
[1770803017372,3.12093861,81.02,80.983,4.77534566]
[1770803017572,11.1132,81.029,80.983,4.77534566]
[1770803018466,3.12093861,81.03,80.984,4.70941457]
[1770803019079,11.1121,81.037,80.984,4.70941457]
[1770803019279,11.1121,81.037,80.991,4.71200009]
[1770803021475,3.12093861,81.03,80.991,4.71200009]
[1770803024783,3.12093861,81.02,80.976,4.72450041]
[1770803027487,22.2175,81.062,80.951,4.76512603]
[1770803027488,3.12093861,81.0,80.951,4.76512603]
[1770803027878,11.51432309,81.038,80.951,4.76512603]
[1770803027879,3.12093861,80.99,80.951,4.76512603]
[1770803028475,3.12093861,80.97,80.934,4.76512603]
[1770803028880,22.2294,81.019,80.91,3.12093861]
[1770803028881,3.12093861,80.96,80.911,4.76463104]
[1770803030086,3.12093861,80.96,80.914,4.76463104]
[1770803030675,3.12093861,80.96,80.917,4.77192947]
[1770803030880,22.2294,81.019,80.931,4.77192947]
[1770803031085,22.2294,81.019,80.894,480.60464367]
[1770803031086,3.12093861,80.99,80.941,4.77192947]
[1770803031883,3.12093861,80.98,80.941,4.77192947]
[1770803033375,172.8584,81.036,80.894,480.60464367]
[1770803033376,3.12093861,80.96,80.922,4.86520417]
[1770803034986,3.12666516,80.96,80.922,4.86520417]
[1770803035286,3.12666516,80.97,80.922,4.86520417]
[1770803035683,3.12666516,80.97,80.91,3.12666516]
[1770803035684,3.12666516,80.95,80.91,4.9107787]
[1770803035880,3.12666516,80.96,80.911,4.9107787]
[1770803037487,3.12666516,80.97,80.921,4.90854816]
[1770803038185,3.12666516,80.96,80.921,4.90854816]
[1770803040591,11.1229,80.959,80.909,4.91053125]
[1770803040788,3.12666516,80.95,80.909,4.91053125]
[1770803041382,3.12666516,80.94,80.909,4.91053125]
[1770803041687,3.12666516,80.94,80.895,4.91599661]
[1770803041885,98.56,80.955,80.895,4.91599661]
[1770803041886,3.12666516,80.93,80.895,4.91599661]
[1770803042080,11.1256,80.939,80.895,4.91599661]
[1770803044790,3.12666516,80.96,80.901,4.91275585]
[1770803044995,3.12666516,80.96,80.911,4.91275585]
[1770803045688,11.1215,80.969,80.921,4.91275585]
[1770803045890,3.12666516,80.97,80.921,4.91275585]
[1770803046084,172.9156,81.009,80.921,4.91275585]
[1770803046085,3.12666516,80.95,80.921,4.91275585]
[1770803046284,3.12666516,80.96,80.921,4.91275585]
[1770803046792,11.1231,80.958,80.921,4.91275585]
[1770803047189,14.25076516,80.95,80.908,4.86184254]
[1770803047390,3.12666516,80.94,80.908,4.86184254]
[1770803048184,11.1256,80.939,80.895,4.86184254]
[1770803048895,11.1256,80.939,80.894,480.60464367]
[1770803048896,3.12666516,80.91,80.866,4.89936016]
[1770803050785,11.1297,80.909,80.866,4.89936016]
[1770803052598,3.12666516,80.91,80.866,4.89936016]
[1770803052599,98.6,80.917,80.866,4.89936016]
[1770803052796,3.12666516,80.91,80.866,4.89936016]
[1770803053708,11.1304,80.904,80.866,4.89936016]
[1770803053900,11.1304,80.904,80.88,0.07825775]
[1770803054598,11.1293,80.912,80.88,0.07825775]
[1770803055504,14.25486516,80.92,80.88,5.11617475]
[1770803056600,98.62,80.928,80.88,5.11617475]
[1770803056899,3.12666516,80.92,80.88,5.11617475]
[1770803057097,98.62,80.928,80.88,5.11617475]
[1770803057899,11.1247,80.946,80.891,5.03073156]
[1770803058199,3.12666516,80.94,80.891,5.03073156]
[1770803058404,3.12666516,80.93,80.891,5.03073156]
[1770803059501,98.62,80.945,80.891,5.03073156]
[1770803059697,3.12666516,80.96,80.852,37.05]
[1770803059896,23.02864619,81.036,80.851,98.62]
[1770803059897,3.12666516,80.92,80.883,5.03097212]
[1770803060093,3.12666516,80.92,80.852,5.03097212]
[1770803060294,3.12666516,80.92,80.871,5.03097212]
[1770803061910,3.12666516,80.92,80.874,5.01599189]
[1770803062206,3.12666516,80.92,80.877,11.134]
[1770803062707,3.12666516,80.92,80.87,3.12666516]
[1770803062708,3.12666516,80.92,80.878,5.01599189]
[1770803063709,3.12666516,80.92,80.881,5.07912992]
[1770803063904,101.74666516,80.93,80.881,5.07912992]
[1770803064207,101.74666516,80.93,80.841,98.62]
[1770803064208,3.12666516,80.91,80.861,5.07912992]
[1770803064808,3.12666516,80.9,80.861,5.07912992]
[1770803065711,3.12666516,80.9,80.871,5.04014537]
[1770803065906,101.74666516,80.93,80.871,5.04014537]
[1770803066303,101.74666516,80.93,80.881,5.04014537]
[1770803067004,101.74666516,80.93,80.898,11.1311]
[1770803067210,11.1236,80.954,80.898,11.1311]
[1770803067211,3.12666516,80.94,80.898,5.03729086]
[1770803067904,3.12666516,80.94,80.858,195.5108]
[1770803067905,3.12666516,80.95,80.914,11.1289]
[1770803069404,3.12666516,80.95,80.919,11.1283]
[1770803069907,3.12666516,80.95,80.926,11.1272]
[1770803070108,3.12666516,80.96,80.919,5.02805242]
[1770803070714,3.12666516,80.96,80.93,0.07790833]
[1770803071308,98.62,80.961,80.931,5.03390486]
[1770803071309,58.2597,80.961,80.931,5.03390486]
[1770803071516,3.12666516,80.97,80.931,5.03390486]
[1770803072814,3.12666516,80.97,80.94,11.1253]
[1770803073415,3.12666516,80.98,80.94,16.16409186]
[1770803074014,3.12666516,80.98,80.895,121.63567658]
[1770803074015,3.12666516,80.98,80.944,5.03879186]
[1770803077422,3.12666516,80.98,80.93,3.12666516]
[1770803077423,98.62,80.981,80.95,5.05791768]
[1770803077630,3.12666516,80.98,80.95,5.05791768]
[1770803078733,3.12666516,80.98,80.953,11.1236]
[1770803079332,3.12666516,80.98,80.958,0.07808822]
[1770803085035,3.12666516,80.97,80.921,5.1252924]
[1770803085333,3.12666516,80.96,80.921,5.1252924]
[1770803085736,3.12666516,80.96,80.929,11.1269]
[1770803086430,3.12666516,80.96,80.929,16.2521924]
[1770803086631,3.12666516,80.96,80.93,5.1252924]
[1770803086928,3.12666516,80.97,80.932,5.18691949]
[1770803089236,3.12666516,80.99,80.941,5.17085584]
[1770803089735,3.12666516,80.98,80.941,5.17085584]
[1770803090735,3.12666516,80.99,80.944,5.15032722]
[1770803091630,3.12666516,80.99,80.949,11.1241]
[1770803092736,3.12666516,80.98,80.949,16.28539606]
[1770803092929,3.12666516,80.98,80.95,5.16129606]
[1770803094526,11.1166,81.005,80.95,5.16129606]
[1770803094731,3.12666516,80.99,80.95,5.16129606]
[1770803095937,3.12463489,80.99,80.95,5.16129606]
[1770803096538,3.12463489,80.99,80.953,11.1236]
[1770803096934,3.12464518,80.99,80.953,11.1236]
[1770803097134,3.12464518,80.99,80.953,16.29035711]
[1770803097335,0.07804018,80.98,80.953,16.29035711]
[1770803097532,3.12464518,81.0,80.953,5.16675711]
[1770803098740,3.12464518,81.0,80.957,5.1235557]
[1770803099637,3.12464518,81.0,80.961,5.1235557]
[1770803100240,115.36464518,81.01,80.966,5.1235557]
[1770803100841,3.12464518,81.0,80.966,5.1235557]
[1770803101438,3.12464518,80.99,80.941,5.11638328]
[1770803102537,3.12464518,80.98,80.941,5.11638328]
[1770803102737,3.12464518,80.97,80.941,5.11638328]
[1770803102943,3.12464518,80.98,80.941,5.11638328]
[1770803103244,3.12464518,80.98,80.943,5.18188812]
[1770803103540,3.12464518,80.98,80.946,5.18188812]
[1770803103837,98.56,80.992,80.946,5.18188812]
[1770803103838,3.12464518,80.99,80.946,5.18188812]
[1770803104237,3.12464518,81.0,80.957,5.18188812]
[1770803105341,3.12464518,81.0,80.959,5.12394335]
[1770803106944,3.12464518,81.0,80.962,5.0849601]
[1770803107846,3.12464518,80.99,80.963,11.1222]
[1770803111046,3.12464518,80.99,80.955,11.1232]
[1770803111240,3.12464518,80.98,80.955,11.1232]
[1770803111550,3.12464518,80.98,80.951,5.0849601]
[1770803111748,3.12464518,80.97,80.939,5.11029463]
[1770803112044,3.12464518,80.97,80.883,22.2665]
[1770803112045,3.12464518,80.95,80.924,5.11029463]
[1770803112445,3.12464518,80.95,80.925,11.1274]
[1770803112647,3.12464518,80.95,80.926,5.11029463]
[1770803112845,3.12464518,80.96,80.926,5.11029463]
[1770803114145,3.12464518,80.96,80.929,16.27901959]
[1770803114742,11.1185,80.991,80.937,5.14879079]
[1770803114944,3.12464518,80.98,80.937,5.14879079]
[1770803115248,3.12464518,80.97,80.937,5.14879079]
[1770803115751,3.12464518,80.97,80.941,5.14879079]
[1770803117844,3.12464518,80.97,80.928,5.10504456]
[1770803118049,11.1194,80.984,80.928,5.10504456]
[1770803118050,3.12464518,80.96,80.931,11.1266]
[1770803118644,11.45051816,81.009,80.89,241.2]
[1770803118645,3.12464518,80.95,80.921,11.128]
[1770803119350,4.518e-05,80.94,80.921,11.128]
[1770803120555,3.12464518,80.95,80.921,11.128]
[1770803120853,3.12464518,80.94,80.921,11.128]
[1770803121150,3.12464518,80.95,80.921,11.128]
[1770803121854,3.12464518,80.94,80.911,11.1293]
[1770803122642,3.12464518,80.94,80.912,5.14829569]
[1770803123847,3.12464518,80.95,80.912,5.14829569]
[1770803125050,123.62,80.961,80.899,5.14092853]
[1770803125051,3.12464518,80.93,80.899,5.14092853]
[1770803128653,3.12464518,80.94,80.899,5.14092853]
[1770803129759,3.12464518,80.93,80.899,5.14092853]
[1770803130758,3.12464518,80.93,80.906,0.07801187]
[1770803130957,3.12464518,80.94,80.906,0.07801187]